[Event "EYTCC U12 Open 2019"]
[Site "Pardubice"]
[Date "2019.07.16"]
[Round "6.14"]
[White "Costa, Leonardo"]
[Black "Winter, Ondrej"]
[Result "1-0"]
[ECO "B38"]
[WhiteElo "2002"]
[BlackElo "1725"]
[Annotator "NA"]
[PlyCount "77"]
[EventDate "2019.07.11"]
[EventType "swiss"]
[EventCountry "CZE"]
[SourceTitle "playchess.com"]
[Source "ChessBase"]
[SourceQuality "1"]
[WhiteTeam "Germany"]
[BlackTeam "Czech Republic"]
[WhiteTeamCountry "GER"]
[BlackTeamCountry "CZE"]
[TimeControl "40/5400+30:1800+30"]

1. e4 {[%emt 0:00:00]} c5 {[%emt 0:00:00]} 2. Nf3 {[%emt 0:00:00]} Nc6 {[%emt 0:00:00]} 3. d4 {[%emt 0:00:00]} cxd4 {[%emt 0:00:00]} 4. Nxd4 {[%emt 0:00:00]} g6 {[%emt 0:00:00]} 5. c4 {[%emt 0:00:09]} Bg7 {[%emt 0:00:07]} 6. Be3 {[%emt 0:00:11]} Nf6 {[%emt 0:00:24]} 7. Nc3 {[%emt 0:00:27]} d6 {[%emt 0:00:40]} 8. Be2 {[%emt 0:00:23]} O-O {[%emt 0:00:31]} 9. O-O {[%emt 0:00:54]} Nxd4 {[%emt 0:00:46]} 10. Bxd4 {[%emt 0:00:30]} Bd7 {[%emt 0:00:06]} 11. f3 {[%emt 0:03:55]} a5 {[%emt 0:02:52]} 12. a3 a4 {[%emt 0:01:38]} 13. c5 {[%emt 0:07:08]} dxc5 {[%emt 0:15:26]} 14. Bxc5 {[%emt 0:00:28]} Re8 {[%emt 0:00:41]} 15. e5 {[%emt 0:17:48]} Nh5 {[%emt 0:03:34]} 16. f4 {[%emt 0:00:30]} Qc7 {[%emt 0:02:58]} 17. Bd4 {[%emt 0:21:29]} f6 {[%emt 0:11:52]} 18. Bxh5 {[%emt 0:02:57]} gxh5 {[%emt 0:00:11]} 19. Qxh5 {[%emt 0:01:51]} Ra5 {[%emt 0:00:53]} 20. Rae1 {[%emt 0:05:45]} Rd8 {[%emt 0:09:03]} 21. Qe2 {[%emt 0:06:08]} fxe5 {[%emt 0:24:06]} 22. Bxe5 {[%emt 0:01:22]} Bxe5 {[%emt 0:02:11]} 23. fxe5 {[%emt 0:00:08]} Qb6+ {[%emt 0:01:26]} 24. Kh1 {[%emt 0:00:20]} Qg6 {[%emt 0:02:48]} 25. Rf4 {[%emt 0:09:01]} Be6 {[%emt 0:03:25]} 26. Rxa4 {[%emt 0:04:50]} Rxa4 {[%emt 0:00:41]} 27. Nxa4 {[%emt 0:00:06]} Rd4 {[%emt 0:00:54]} 28. Nc3 {[%emt 0:00:36]} Rh4 {[%emt 0:07:57]} 29. Qf2 {[%emt 0:04:40]} Qh6 {[%emt 0:06:31]} 30. Qg3+ {[%emt 0:01:56]} Rg4 {[%emt 0:00:14]} 31. Qd3 {[%emt 0:01:20]} Qg5 {[%emt 0:02:33]} 32. Qf3 {[%emt 0:03:34]} Rh4 {[%emt 0:00:42]} 33. g3 {[%emt 0:03:00]} Rh6 {[%emt 0:00:35]} 34. Rf1 {[%emt 0:01:09]} Qg7 {[%emt 0:00:23]} 35. Qxb7 {[%emt 0:02:49]} Kh8 36. Qa8+ {[%emt 0:00:53]} Bg8 {[%emt 0:00:45]} 37. Qf8 {[%emt 0:00:46]} Qg5 {[%emt 0:00:47]} 38. Qf4 {[%emt 0:00:10]} Qh5 {[%emt 0:00:22]} 39. Rf2 {[%emt 0:00:51]} 1-0

[Event "EYTCC U12 Open 2019"]
[Site "Pardubice"]
[Date "2019.07.16"]
[Round "6.15"]
[White "Hladky, Tadeas"]
[Black "Deuer, Marius"]
[Result "0-1"]
[ECO "C44"]
[WhiteElo "1638"]
[BlackElo "1881"]
[Annotator "NA"]
[PlyCount "56"]
[EventDate "2019.07.11"]
[EventType "swiss"]
[EventCountry "CZE"]
[SourceTitle "playchess.com"]
[Source "ChessBase"]
[SourceQuality "1"]
[WhiteTeam "Czech Republic"]
[BlackTeam "Germany"]
[WhiteTeamCountry "CZE"]
[BlackTeamCountry "GER"]
[TimeControl "40/5400+30:1800+30"]

1. e4 {[%emt 0:00:00]} e5 {[%emt 0:00:00]} 2. Nf3 {[%emt 0:00:00]} Nc6 {[%emt 0:00:00]} 3. d4 {[%emt 0:00:00]} exd4 {[%emt 0:00:00]} 4. Nxd4 {[%emt 0:00:00]} Nf6 {[%emt 0:00:00]} 5. Nc3 {[%emt 0:00:00]} Bb4 {[%emt 0:00:00]} 6. Nxc6 {[%emt 0:00:02]} bxc6 {[%emt 0:00:00]} 7. Bd3 {[%emt 0:00:03]} d5 {[%emt 0:00:07]} 8. exd5 {[%emt 0:00:31]} O-O {[%emt 0:00:14]} 9. O-O {[%emt 0:00:04]} cxd5 {[%emt 0:00:50]} 10. Bg5 {[%emt 0:00:05]} c6 {[%emt 0:00:07]} 11. Na4 {[%emt 0:00:06]} Bd6 {[%emt 0:03:10]} 12. c4 {[%emt 0:00:25]} Be6 {[%emt 0:08:19]} 13. Rc1 {[%emt 0:02:05]} Re8 {[%emt 0:08:50]} 14. f4 {[%emt 0:03:18]} Rb8 {[%emt 0:06:58]} 15. b3 {[%emt 0:06:39]} h6 {[%emt 0:06:10]} 16. Bh4 {[%emt 0:00:56]} g5 {[%emt 0:08:16]} 17. f5 {[%emt 0:18:15]} Bc8 {[%emt 0:05:24]} 18. Bf2 {[%emt 0:00:41]} d4 {[%emt 0:02:02]} 19. c5 {[%emt 0:03:05]} Bf4 {[%emt 0:00:21]} 20. Rc4 {[%emt 0:01:40]} Be3 {[%emt 0:03:18]} 21. Rc2 {[%emt 0:04:06]} Nd5 {[%emt 0:03:43]} 22. Re2 {[%emt 0:03:41]} Nf4 {[%emt 0:04:59]} 23. Rb2 {[%emt 0:01:04]} Qd5 {[%emt 0:02:27]} 24. Bxe3 {[%emt 0:00:34]} dxe3 {[%emt 0:00:34]} 25. Bc4 {[%emt 0:01:25]} e2 {[%emt 0:01:18]} 26. Rxe2 {[%emt 0:01:29]} Nxe2+ {[%emt 0:00:13]} 27. Bxe2 {[%emt 0:00:16]} Qxd1 {[%emt 0:00:02]} 28. Bxd1 {[%emt 0:00:04]} Ba6 {[%emt 0:00:03]} 0-1

[Event "EYTCC U12 Open 2019"]
[Site "Pardubice"]
[Date "2019.07.16"]
[Round "6.16"]
[White "Hagner, Bennet"]
[Black "Mohapl, Tomas"]
[Result "1-0"]
[ECO "B90"]
[WhiteElo "1831"]
[BlackElo "1585"]
[Annotator "NA"]
[PlyCount "91"]
[EventDate "2019.07.11"]
[EventType "swiss"]
[EventCountry "CZE"]
[SourceTitle "playchess.com"]
[Source "ChessBase"]
[SourceQuality "1"]
[WhiteTeam "Germany"]
[BlackTeam "Czech Republic"]
[WhiteTeamCountry "GER"]
[BlackTeamCountry "CZE"]
[TimeControl "40/5400+30:1800+30"]

1. e4 c5 2. Nf3 d6 3. d4 cxd4 4. Nxd4 Nf6 5. Nc3 a6 6. h3 e5 7. Nb3 Be6 8. f4 Qc7 9. f5 Bc4 10. Be3 Bxf1 11. Rxf1 Nbd7 12. g4 Nb6 13. Bxb6 Qxb6 14. Qf3 O-O-O 15. g5 Nd7 16. Nd5 Qc6 17. O-O-O Kb8 18. f6 Rc8 19. Rf2 gxf6 20. gxf6 Qa4 21. Nc3 Qc4 22. Qh5 Nb6 23. Kb1 Qb4 24. a3 Qc4 25. Nd2 Qc5 26. Rf3 Rc7 27. Nb3 Qc4 28. Na5 Qe6 29. Nd5 Nxd5 30. Rxd5 Rc5 31. Rxc5 dxc5 32. Rb3 b6 33. Qxe5+ Qxe5 34. Nc6+ Kc7 35. Nxe5 Rg8 36. Nxf7 b5 37. Rd3 c4 38. Rd8 Rg1+ 39. Ka2 Bc5 40. e5 Re1 41. Rh8 Kd7 42. Rxh7 Ke6 43. Ng5+ Kf5 44. Rc7 Bf8 45. Nh7 Bd6 46. exd6 1-0

[Event "EYTCC U12 Open 2019"]
[Site "Pardubice"]
[Date "2019.07.16"]
[Round "6.17"]
[White "Royal, Shreyas"]
[Black "Strybuk, Artsiom I"]
[Result "0-1"]
[ECO "D85"]
[WhiteElo "1996"]
[BlackElo "2193"]
[Annotator "NA"]
[PlyCount "90"]
[EventDate "2019.07.11"]
[EventType "swiss"]
[EventCountry "CZE"]
[SourceTitle "playchess.com"]
[Source "ChessBase"]
[SourceQuality "1"]
[WhiteTeam "England"]
[BlackTeam "Belarus"]
[WhiteTeamCountry "ENG"]
[BlackTeamCountry "BLR"]
[TimeControl "40/5400+30:1800+30"]

1. d4 {[%emt 0:00:00]} Nf6 {[%emt 0:00:00]} 2. c4 {[%emt 0:00:05]} g6 {[%emt 0:00:00]} 3. Nc3 {[%emt 0:00:28]} d5 {[%emt 0:00:03]} 4. cxd5 {[%emt 0:02:22]} Nxd5 {[%emt 0:00:07]} 5. Bd2 {[%emt 0:00:42]} Bg7 {[%emt 0:04:58]} 6. e4 {[%emt 0:02:28]} Nxc3 {[%emt 0:03:34]} 7. Bxc3 {[%emt 0:01:40]} c5 {[%emt 0:01:08]} 8. d5 {[%emt 0:04:17]} Bxc3+ {[%emt 0:00:41]} 9. bxc3 {[%emt 0:00:31]} O-O {[%emt 0:02:40]} 10. Qd2 {[%emt 0:00:31]} e6 {[%emt 0:02:26]} 11. Bc4 {[%emt 0:05:32]} exd5 {[%emt 0:02:12]} 12. Bxd5 {[%emt 0:02:06]} Nd7 {[%emt 0:07:40]} 13. Nf3 {[%emt 0:06:00]} Nf6 {[%emt 0:10:21]} 14. O-O {[%emt 0:01:40]} Qe7 {[%emt 0:08:17]} 15. Qf4 {[%emt 0:06:22]} Be6 {[%emt 0:03:52]} 16. Rad1 {[%emt 0:03:40]} Rad8 {[%emt 0:04:49]} 17. Rfe1 {[%emt 0:07:55]} Rfe8 {[%emt 0:04:19]} 18. c4 {[%emt 0:01:44]} b6 {[%emt 0:06:28]} 19. Bc6 {[%emt 0:13:32]} Rxd1 {[%emt 0:02:20]} 20. Rxd1 {[%emt 0:00:33]} Rd8 {[%emt 0:00:04]} 21. Rxd8+ {[%emt 0:00:28]} Qxd8 {[%emt 0:00:07]} 22. Bd5 {[%emt 0:00:05]} Qe7 {[%emt 0:06:26]} 23. Qb8+ {[%emt 0:01:49]} Kg7 {[%emt 0:02:19]} 24. Qe5 {[%emt 0:00:27]} Qe8 {[%emt 0:02:47]} 25. Bxe6 {[%emt 0:02:19]} Qxe6 {[%emt 0:00:17]} 26. Qxe6 {[%emt 0:00:33]} fxe6 {[%emt 0:00:09]} 27. Ng5 {[%emt 0:01:45]} e5 {[%emt 0:04:56]} 28. f3 {[%emt 0:00:13]} Ne8 {[%emt 0:02:08]} 29. Ne6+ {[%emt 0:00:35]} Kf7 {[%emt 0:02:10]} 30. Nd8+ {[%emt 0:02:42]} Kf6 {[%emt 0:00:49]} 31. Nc6 {[%emt 0:05:58]} a5 {[%emt 0:01:11]} 32. g4 {[%emt 0:02:17]} Nd6 {[%emt 0:02:32]} 33. g5+ {[%emt 0:00:30]} Ke6 {[%emt 0:00:14]} 34. Kf2 {[%emt 0:00:52]} Nxc4 {[%emt 0:00:14]} 35. Ke2 {[%emt 0:00:07]} Kd7 {[%emt 0:01:15]} 36. Na7 {[%emt 0:00:24]} Na3 {[%emt 0:01:43]} 37. Kd3 {[%emt 0:00:38]} Kc7 {[%emt 0:00:10]} 38. f4 {[%emt 0:00:04]} exf4 {[%emt 0:01:00]} 39. e5 c4+ {[%emt 0:00:27]} 40. Ke4 {[%emt 0:00:29]} c3 {[%emt 0:00:15]} 41. Kd3 {[%emt 0:30:36]} c2 {[%emt 0:30:13]} 42. Kd2 {[%emt 0:00:09]} f3 {[%emt 0:00:07]} 43. e6 {[%emt 0:00:02]} f2 {[%emt 0:00:21]} 44. e7 {[%emt 0:00:05]} f1=Q {[%emt 0:00:39]} 45. e8=N+ {[%emt 0:00:17]} Kb7 {[%emt 0:00:52]} 0-1

[Event "EYTCC U12 Open 2019"]
[Site "Pardubice"]
[Date "2019.07.16"]
[Round "6.18"]
[White "Navumenka, Mikhei"]
[Black "Dias, Savin"]
[Result "1/2-1/2"]
[ECO "A40"]
[WhiteElo "2196"]
[BlackElo "1840"]
[Annotator "ChessBase"]
[PlyCount "171"]
[EventDate "2019.07.11"]
[EventType "swiss"]
[EventCountry "CZE"]
[SourceTitle "playchess.com"]
[Source "ChessBase"]
[SourceQuality "1"]
[WhiteTeam "Belarus"]
[BlackTeam "England"]
[WhiteTeamCountry "BLR"]
[BlackTeamCountry "ENG"]
[TimeControl "40/5400+30:1800+30"]

1. d4 {[%emt 0:00:00]} Nf6 {[%emt 0:00:00]} 2. c4 {[%emt 0:00:00]} e6 {[%emt 0:00:00]} 3. g3 {[%emt 0:00:00]} Bb4+ {[%emt 0:00:00]} 4. Bd2 {[%emt 0:00:00]} a5 {[%emt 0:00:00]} 5. Bg2 {[%emt 0:00:24]} d6 {[%emt 0:00:03]} 6. Nf3 {[%emt 0:00:09]} Nbd7 {[%emt 0:00:11]} 7. O-O {[%emt 0:02:20]} e5 {[%emt 0:00:35]} 8. Bg5 {[%emt 0:02:58]} exd4 {[%emt 0:00:23]} 9. Nxd4 {[%emt 0:00:47]} h6 {[%emt 0:02:32]} 10. Bd2 {[%emt 0:03:43]} Bc5 {[%emt 0:02:38]} 11. Bc3 {[%emt 0:00:13]} O-O {[%emt 0:00:22]} 12. Nd2 {[%emt 0:01:56]} Re8 {[%emt 0:01:24]} 13. e3 {[%emt 0:06:58]} Bb6 {[%emt 0:05:04]} 14. Qc2 {[%emt 0:02:16]} Ne5 {[%emt 0:08:48]} 15. b3 {[%emt 0:05:52]} d5 {[%emt 0:03:56]} 16. N4f3 {[%emt 0:18:08]} Nxf3+ {[%emt 0:16:53]} 17. Bxf3 {[%emt 0:04:12]} d4 {[%emt 0:01:17]} 18. exd4 {[%emt 0:00:10]} Bxd4 {[%emt 0:00:11]} 19. Rad1 {[%emt 0:01:09]} Bxc3 {[%emt 0:01:13]} 20. Qxc3 {[%emt 0:00:36]} Bh3 {[%emt 0:07:44]} 21. Rfe1 {[%emt 0:02:08]} Rxe1+ {[%emt 0:00:16]} 22. Rxe1 {[%emt 0:00:02]} c6 {[%emt 0:01:42]} 23. a3 {[%emt 0:03:06]} Qd7 {[%emt 0:03:51]} 24. c5 {[%emt 0:03:27]} Rd8 {[%emt 0:04:49]} 25. Nc4 {[%emt 0:02:23]} a4 {[%emt 0:03:09]} 26. bxa4 {[%emt 0:12:26]} Qd3 {[%emt 0:05:14]} 27. Qxd3 {[%emt 0:09:00]} Rxd3 {[%emt 0:02:33]} 28. Bh1 {[%emt 0:01:02]} Rb3 {[%emt 0:07:13]} 29. Na5 {[%emt 0:06:55]} Rb2 {[%emt 0:02:06]} 30. Nc4 {[%emt 0:00:16]} Rb3 {[%emt 0:00:48]} 31. Na5 {[%emt 0:00:01]} Rb2 {[%emt 0:00:08]} 32. Bg2 {[%emt 0:00:07]} Bxg2 {[%emt 0:00:33]} 33. Kxg2 {[%emt 0:00:01]} Ng4 {[%emt 0:00:22]} 34. Re8+ {[%emt 0:05:03]} Kh7 {[%emt 0:00:03]} 35. Re7 {[%emt 0:00:07]} Rxf2+ {[%emt 0:01:48]} 36. Kg1 {[%emt 0:00:03]} Ra2 {[%emt 0:03:57]} 37. Nxb7 {[%emt 0:01:28]} Ra1+ {[%emt 0:01:46]} 38. Kg2 {[%emt 0:00:49]} Ra2+ {[%emt 0:00:26]} 39. Kg1 {[%emt 0:00:48]} Ra1+ {[%emt 0:00:05]} 40. Kg2 {[%emt 0:00:04]} Ra2+ {[%emt 0:00:05]} 41. Kf1 {[%emt 0:30:57]} Nxh2+ {[%emt 0:30:32]} 42. Ke1 {[%emt 0:00:13]} Nf3+ {[%emt 0:00:13]} 43. Kd1 {[%emt 0:00:05]} Rxa3 {[%emt 0:00:16]} 44. a5 {[%emt 0:00:52]} Kg6 {[%emt 0:00:39]} 45. Kc1 {[%emt 0:04:23]} Nd4 {[%emt 0:01:21]} 46. Kb2 {[%emt 0:00:33]} Rxg3 {[%emt 0:01:06]} 47. a6 {[%emt 0:03:55]} Nb5 {[%emt 0:00:32]} 48. Nd6 {[%emt 0:00:00]} Ra3 {[%emt 0:00:00]} 49. Nxb5 {[%emt 0:00:00]} Rxa6 {[%emt 0:00:00]} 50. Nd4 {[%emt 0:00:00]} h5 {[%emt 0:00:00]} 51. Rb7 {[%emt 0:00:00]} h4 {[%emt 0:00:00]} 52. Rb6 {[%emt 0:00:00]} Ra4 {[%emt 0:00:00]} 53. Rxc6+ {[%emt 0:00:00]} Kg5 {[%emt 0:00:00]} 54. Rd6 {[%emt 0:00:00]} h3 {[%emt 0:00:00]} 55. Kb3 {[%emt 0:00:00]} Ra8 {[%emt 0:00:00]} 56. Rd7 {[%emt 0:00:00]} Kg4 {[%emt 0:00:00]} 57. Rxf7 {[%emt 0:00:00]} g5 {[%emt 0:00:00]} 58. Rh7 {[%emt 0:00:00]} Kg3 {[%emt 0:00:00]} 59. Nf5+ {[%emt 0:00:00]} Kf4 {[%emt 0:00:00]} 60. Nd4 {[%emt 0:00:00]} g4 {[%emt 0:00:00]} 61. c6 {[%emt 0:00:35]} Kg3 {[%emt 0:00:00]} 62. Nf5+ {[%emt 0:02:42]} Kg2 {[%emt 0:00:00]} 63. Rh4 {[%emt 0:02:02]} g3 {[%emt 0:00:55]} 64. Rg4 {[%emt 0:00:59]} h2 {[%emt 0:00:07]} 65. Nxg3 {[%emt 0:00:44]} Rc8 {[%emt 0:01:03]} 66. Ne2+ {[%emt 0:01:29]} Kh3 {[%emt 0:01:32]} 67. Rg3+ {[%emt 0:00:37]} Kh4 {[%emt 0:00:04]} 68. Rg6 {[%emt 0:00:24]} h1=Q {[%emt 0:00:18]} 69. Rh6+ {[%emt 0:00:06]} Kg5 {[%emt 0:00:07]} 70. Rxh1 {[%emt 0:00:06]} Rxc6 {[%emt 0:00:09]} 71. Nd4 {[%emt 0:00:20]} Rb6+ {[%emt 0:00:07]} 72. Kc4 {[%emt 0:00:06]} Kf4 {[%emt 0:00:13]} 73. Rf1+ {[%emt 0:00:11]} Kg4 {[%emt 0:00:13]} 74. Kd5 {[%emt 0:00:15]} Rb8 {[%emt 0:00:10]} 75. Nc6 {[%emt 0:00:14]} Re8 {[%emt 0:00:33]} 76. Ne5+ {[%emt 0:00:08]} Kg3 {[%emt 0:00:12]} 77. Rf3+ {[%emt 0:00:05]} Kg2 {[%emt 0:00:04]} 78. Re3 {[%emt 0:00:11]} Ra8 {[%emt 0:00:09]} 79. Nc6 {[%emt 0:00:52]} Ra1 {[%emt 0:00:07]} 80. Ke4 {[%emt 0:00:06]} Ra4+ {[%emt 0:00:08]} 81. Nd4 {[%emt 0:00:04]} Ra8 {[%emt 0:00:17]} 82. Kf4 {[%emt 0:00:14]} Rf8+ {[%emt 0:00:12]} 83. Nf5 {[%emt 0:00:03]} Kf2 {[%emt 0:00:50]} 84. Rf3+ {[%emt 0:00:15]} Ke2 {[%emt 0:00:09]} 85. Kg4 {[%emt 0:00:07]} Rg8+ {[%emt 0:00:08]} 86. Kf4 {[%emt 0:00:04]} 1/2-1/2

[Event "EYTCC U12 Open 2019"]
[Site "Pardubice"]
[Date "2019.07.16"]
[Round "6.19"]
[White "Merriman, James"]
[Black "Bialiauski, Artsiom"]
[Result "0-1"]
[ECO "E59"]
[WhiteElo "1808"]
[BlackElo "1784"]
[Annotator "NA"]
[PlyCount "70"]
[EventDate "2019.07.11"]
[EventType "swiss"]
[EventCountry "CZE"]
[SourceTitle "playchess.com"]
[Source "ChessBase"]
[SourceQuality "1"]
[WhiteTeam "England"]
[BlackTeam "Belarus"]
[WhiteTeamCountry "ENG"]
[BlackTeamCountry "BLR"]
[TimeControl "40/5400+30:1800+30"]

1. d4 {[%emt 0:00:00]} Nf6 {[%emt 0:00:00]} 2. c4 {[%emt 0:00:00]} e6 {[%emt 0:00:01]} 3. Nc3 {[%emt 0:00:00]} Bb4 {[%emt 0:00:18]} 4. e3 {[%emt 0:00:02]} O-O {[%emt 0:01:35]} 5. Bd3 {[%emt 0:00:20]} d5 {[%emt 0:00:48]} 6. Nf3 {[%emt 0:00:18]} c5 {[%emt 0:00:34]} 7. O-O {[%emt 0:00:11]} Nc6 {[%emt 0:00:06]} 8. a3 {[%emt 0:00:33]} Bxc3 {[%emt 0:00:08]} 9. bxc3 {[%emt 0:00:13]} dxc4 {[%emt 0:02:50]} 10. Bxc4 {[%emt 0:00:10]} Qc7 {[%emt 0:00:27]} 11. Ba2 {[%emt 0:01:00]} Rd8 {[%emt 0:02:14]} 12. Qe2 {[%emt 0:19:24]} e5 {[%emt 0:01:15]} 13. dxe5 {[%emt 0:00:53]} Nxe5 {[%emt 0:01:47]} 14. Nxe5 {[%emt 0:00:11]} Qxe5 {[%emt 0:00:08]} 15. Bb2 {[%emt 0:01:30]} Qe7 {[%emt 0:04:29]} 16. Bb1 {[%emt 0:02:38]} Be6 {[%emt 0:04:05]} 17. c4 {[%emt 0:04:29]} a6 {[%emt 0:06:45]} 18. Bd3 {[%emt 0:07:23]} Bd7 {[%emt 0:00:37]} 19. e4 {[%emt 0:03:53]} Bc6 {[%emt 0:02:14]} 20. e5 {[%emt 0:03:17]} Nd7 {[%emt 0:03:55]} 21. Rae1 {[%emt 0:00:26]} Re8 {[%emt 0:10:12]} 22. f4 {[%emt 0:03:48]} f6 {[%emt 0:00:41]} 23. Qh5 {[%emt 0:09:24]} g6 {[%emt 0:00:15]} 24. Qg4 {[%emt 0:01:22]} Nf8 {[%emt 0:07:33]} 25. f5 {[%emt 0:02:21]} Qd7 {[%emt 0:08:10]} 26. exf6 {[%emt 0:02:46]} Rxe1 {[%emt 0:02:21]} 27. f7+ {[%emt 0:05:21]} Qxf7 {[%emt 0:00:09]} 28. Rxe1 {[%emt 0:00:14]} Qd7 {[%emt 0:07:51]} 29. Qg3 {[%emt 0:01:58]} Re8 {[%emt 0:04:31]} 30. Rxe8 {[%emt 0:01:16]} Qxe8 {[%emt 0:00:16]} 31. h4 {[%emt 0:00:56]} Kf7 {[%emt 0:04:20]} 32. h5 {[%emt 0:07:41]} gxf5 {[%emt 0:02:12]} 33. Bxf5 {[%emt 0:00:33]} Qe2 {[%emt 0:01:10]} 34. Qc7+ {[%emt 0:01:33]} Ke8 {[%emt 0:01:21]} 35. Bf6 {[%emt 0:00:48]} Qxg2# {[%emt 0:00:06]} 0-1

[Event "EYTCC U12 Open 2019"]
[Site "Pardubice"]
[Date "2019.07.16"]
[Round "6.20"]
[White "Piatrenka, Ivan"]
[Black "Thatte, Nishchal"]
[Result "1-0"]
[ECO "D34"]
[WhiteElo "1498"]
[BlackElo "1686"]
[Annotator "NA"]
[PlyCount "153"]
[EventDate "2019.07.11"]
[EventType "swiss"]
[EventCountry "CZE"]
[SourceTitle "playchess.com"]
[Source "ChessBase"]
[SourceQuality "1"]
[WhiteTeam "Belarus"]
[BlackTeam "England"]
[WhiteTeamCountry "BLR"]
[BlackTeamCountry "ENG"]
[TimeControl "40/5400+30:1800+30"]

1. d4 {[%emt 0:00:00]} d5 {[%emt 0:00:00]} 2. c4 {[%emt 0:00:00]} e6 {[%emt 0:00:00]} 3. Nc3 {[%emt 0:00:00]} c5 {[%emt 0:00:14]} 4. cxd5 {[%emt 0:00:00]} exd5 {[%emt 0:00:10]} 5. Nf3 {[%emt 0:00:00]} Nc6 {[%emt 0:00:15]} 6. g3 {[%emt 0:00:36]} Nf6 {[%emt 0:00:16]} 7. Bg2 {[%emt 0:00:18]} Be7 {[%emt 0:00:26]} 8. O-O {[%emt 0:00:55]} O-O {[%emt 0:00:15]} 9. Bg5 {[%emt 0:01:19]} c4 {[%emt 0:00:43]} 10. Ne5 {[%emt 0:04:20]} Be6 {[%emt 0:00:26]} 11. Bxf6 {[%emt 0:04:54]} Bxf6 {[%emt 0:02:16]} 12. Nxc6 {[%emt 0:27:14]} bxc6 {[%emt 0:00:16]} 13. Qd2 {[%emt 0:00:51]} Qb6 {[%emt 0:10:13]} 14. Rfd1 {[%emt 0:01:57]} Rab8 {[%emt 0:01:32]} 15. Rab1 {[%emt 0:00:42]} Rfd8 {[%emt 0:12:40]} 16. b3 {[%emt 0:04:07]} cxb3 {[%emt 0:04:01]} 17. Rxb3 {[%emt 0:00:17]} Qa5 {[%emt 0:07:20]} 18. Rdb1 {[%emt 0:05:53]} Qc7 {[%emt 0:03:46]} 19. Na4 {[%emt 0:09:18]} Bf5 {[%emt 0:04:57]} 20. Rc1 {[%emt 0:05:22]} Rxb3 {[%emt 0:07:58]} 21. axb3 {[%emt 0:00:00]} Qd6 {[%emt 0:00:35]} 22. Nc5 {[%emt 0:02:38]} Re8 {[%emt 0:07:54]} 23. e3 {[%emt 0:04:19]} g6 {[%emt 0:02:22]} 24. Nd3 {[%emt 0:03:13]} Bxd3 {[%emt 0:01:13]} 25. Qxd3 {[%emt 0:00:21]} Rb8 {[%emt 0:01:47]} 26. Qc3 {[%emt 0:02:38]} Rc8 {[%emt 0:03:34]} 27. Qc5 {[%emt 0:02:46]} Be7 {[%emt 0:02:59]} 28. Qxd6 {[%emt 0:00:06]} Bxd6 {[%emt 0:00:07]} 29. Bxd5 {[%emt 0:00:14]} c5 {[%emt 0:00:23]} 30. b4 {[%emt 0:01:29]} c4 {[%emt 0:00:12]} 31. Bxc4 {[%emt 0:00:10]} Rc7 {[%emt 0:00:45]} 32. b5 {[%emt 0:00:15]} Kf8 {[%emt 0:00:25]} 33. Kf1 {[%emt 0:00:21]} Ke7 {[%emt 0:01:16]} 34. Ke2 {[%emt 0:00:24]} f6 {[%emt 0:01:06]} 35. Rc2 {[%emt 0:01:19]} Bb4 {[%emt 0:00:37]} 36. Bd3 {[%emt 0:00:59]} Rxc2+ {[%emt 0:00:53]} 37. Bxc2 {[%emt 0:00:07]} Kd6 {[%emt 0:00:04]} 38. f3 {[%emt 0:00:36]} Kd5 {[%emt 0:00:54]} 39. g4 {[%emt 0:01:22]} Kc4 {[%emt 0:01:03]} 40. Bd3+ {[%emt 0:00:05]} Kd5 {[%emt 0:00:06]} 41. Be4+ {[%emt 0:33:16]} Ke6 {[%emt 0:30:55]} 42. Kd3 {[%emt 0:01:13]} Bd6 {[%emt 0:00:07]} 43. h3 {[%emt 0:00:19]} Bg3 {[%emt 0:00:21]} 44. Bb7 {[%emt 0:01:06]} Kd6 {[%emt 0:00:36]} 45. Bc8 {[%emt 0:04:01]} Kc7 {[%emt 0:00:15]} 46. Be6 {[%emt 0:00:09]} Kd6 {[%emt 0:00:18]} 47. Bb3 {[%emt 0:00:29]} Be1 {[%emt 0:00:22]} 48. f4 {[%emt 0:03:37]} Bg3 {[%emt 0:00:20]} 49. Ke4 {[%emt 0:01:49]} Bf2 {[%emt 0:00:11]} 50. Kf3 {[%emt 0:00:57]} Bg1 {[%emt 0:00:16]} 51. h4 {[%emt 0:00:45]} h6 {[%emt 0:00:37]} 52. Bf7 {[%emt 0:02:46]} g5 {[%emt 0:00:16]} 53. fxg5 {[%emt 0:00:09]} fxg5 {[%emt 0:00:01]} 54. h5 {[%emt 0:01:00]} Ke7 {[%emt 0:00:04]} 55. Bb3 {[%emt 0:00:12]} Kf6 {[%emt 0:00:22]} 56. Ke4 {[%emt 0:00:11]} Bf2 {[%emt 0:00:01]} 57. Kd3 {[%emt 0:00:13]} Ke7 {[%emt 0:00:03]} 58. e4 {[%emt 0:00:07]} Bg3 {[%emt 0:00:16]} 59. e5 {[%emt 0:00:06]} Kd7 {[%emt 0:00:08]} 60. Ke4 {[%emt 0:00:13]} Bf2 {[%emt 0:00:15]} 61. d5 {[%emt 0:01:47]} Bc5 {[%emt 0:00:03]} 62. d6 {[%emt 0:00:12]} Bxd6 {[%emt 0:00:30]} 63. exd6 {[%emt 0:00:10]} Kxd6 {[%emt 0:00:05]} 64. Kf5 {[%emt 0:00:21]} Kd7 {[%emt 0:00:10]} 65. Kg6 {[%emt 0:00:12]} Ke7 {[%emt 0:00:02]} 66. Kxh6 {[%emt 0:00:22]} Kf6 {[%emt 0:00:04]} 67. Ba2 {[%emt 0:00:13]} Ke5 {[%emt 0:00:04]} 68. Kxg5 {[%emt 0:00:07]} Ke4 {[%emt 0:00:02]} 69. h6 {[%emt 0:00:12]} Kf3 {[%emt 0:00:08]} 70. h7 {[%emt 0:00:05]} Kg2 {[%emt 0:00:06]} 71. Kf4 {[%emt 0:00:14]} Kf2 {[%emt 0:00:08]} 72. h8=Q Ke2 {[%emt 0:00:28]} 73. Bc4+ {[%emt 0:00:38]} Kd2 {[%emt 0:00:06]} 74. Qb2+ {[%emt 0:00:06]} Kd1 {[%emt 0:00:06]} 75. Be2+ {[%emt 0:00:23]} Ke1 {[%emt 0:00:04]} 76. Ke3 {[%emt 0:00:10]} a5 {[%emt 0:00:10]} 77. Qa1# {[%emt 0:00:07]} 1-0